Cogmind - Beta 13 @@@ ROGUE MODE // 2024.06.26 @ 23:16:25 Player: Jammed Result: Destroyed by YI-UF0 with YI-UF0's Doublenader Performance ------------- Evolutions (0) 0 Regions Visited (2) 400 Robots Destroyed (21) 105 Value Destroyed (431) 431 Prototype IDs (0) 0 Alien Tech Used (0) 0 Bonus (0) 0 TOTAL SCORE: 936 Bonus ------- None Cogmind --------- Core Integrity 0/250 Matter 300/300 Energy 248/250 System Corruption 0% Temperature Warm (191) Movement Core (900) Ox17 Location -10/Mines Parts ------- > --- POWER (1) -------- Ion Engine > --- PROPULSION (2) --- (None) > --- UTILITY (2) ------ Heat Sink High-capacity Storage Unit > --- WEAPON (2) ------- Particle Gun Particle Gun > --- INVENTORY (20) --- Ion Engine Light Nuclear Core Light Treads Light Treads Light Treads Aluminum Leg Wheel Small Storage Unit Improved Terrain Scanner Seismic Detector Seismic Detector Light Armor Plating Light Armor Plating Light Armor Plating Light Armor Plating Light Armor Plating Light Armor Plating Light Armor Plating Light Armor Plating Medium Laser Peak State ------------ > --- POWER ------------ Ion Engine > --- PROPULSION ------- Light Treads Wheel > --- UTILITY ---------- Heat Sink High-capacity Storage Unit > --- WEAPON ----------- Particle Gun Particle Gun > --- INVENTORY -------- Ion Engine Light Nuclear Core Light Treads Light Treads Light Treads Aluminum Leg Wheel Small Storage Unit Improved Terrain Scanner Seismic Detector Light Armor Plating Light Armor Plating Light Armor Plating Light Armor Plating Light Armor Plating Light Armor Plating Light Armor Plating Light Armor Plating Medium Laser [Rating: 11] Favorites ----------- Power Ion Engine Engine Ion Engine Propulsion Wheel Treads Light Treads Leg Aluminum Leg Wheel Wheel Utility Seismic Detector Device Seismic Detector Storage Large Storage Unit Weapon Particle Gun Energy Gun Particle Gun Ballistic Gun Assault Rifle Build | -11 -10 -10 ------- Run | Yrd Mat Min Slots Evolved . | . . . Power . | . . . Propulsion . | . . . Utility . | . . . Weapon . | . . . Parts Attached 10 | 1 7 2 Power 2 | . 2 . Engine 2 | . 2 . Core . | . . . Reactor . | . . . Propulsion 2 | . 2 . Treads 1 | . 1 . Leg . | . . . Wheel 1 | . 1 . Hover . | . . . Flight . | . . . Utility 4 | 1 2 1 Device 2 | 1 . 1 Storage 2 | . 2 . Processor . | . . . Hackware . | . . . Protection . | . . . Artifact . | . . . Weapon 2 | . 1 1 Energy Gun 2 | . 1 1 Energy Cannon . | . . . Ballistic Gun . | . . . Ballistic Cannon . | . . . Launcher . | . . . Special Weapon . | . . . Impact Weapon . | . . . Slashing Weapon . | . . . Piercing Weapon . | . . . Special Melee Weapon . | . . . Unidentified Prototypes . | . . . Parts Lost 4 | . 1 3 Power 1 | . 1 . Propulsion 2 | . . 2 Utility . | . . . Weapon 1 | . . 1 Highest Loss Streak 2 | . 1 2 To Critical Strikes . | . . . Average Slot Usage (%) 99 | . 99 98 Engine 13 | . 13 14 Treads 12 | . 12 13 Leg 1 | . 1 . Wheel 13 | . 13 14 Device 14 | . 14 14 Storage 14 | . 14 14 Energy Gun 17 | . 14 27 Ballistic Gun 10 | . 14 . Naked Turns . | . . . Heaviest Build 52 | 15 51 52 Greatest Support 20 | 20 20 10 Greatest Overweight (x) 5 | . 5 5 Average Overweight (x) 3 | . 2 4 Largest Inventory Capacity 20 | 8 20 20 Average Capacity 16 | 8 15 20 Most Carried 20 | 7 18 20 Average Carried 11 | 6 8 19 Final Capacity 20 | 8 20 20 Final Carried 20 | 7 18 20 Class Distribution -------------------- 100% | Mutant Dominant Class ---------------- Mutant | -10/Materials Mutant | -10/Mines Resources | -11 -10 -10 ----------- Run | Yrd Mat Min Matter Collected 509 | 219 261 29 Remotely . | . . . Salvage Created 711 | 103 531 77 Parts 40 | 5 32 3 Haulers Intercepted 2 | . 2 . Recyclers Shooed 1 | 1 . . Parts Field Recycled . | . . . Retrieved Matter . | . . . Parts Self-Destructed . | . . . Prevented . | . . . Kills | -11 -10 -10 ------- Run | Yrd Mat Min Combat Hostiles Destroyed 12 | . 10 2 Guns 12 | . 10 2 Classes Destroyed 8 | 2 6 . Worker 2 | . 2 . Builder 1 | . 1 . Tunneler 1 | 1 . . Hauler 2 | . 2 . Recycler 1 | 1 . . Watcher 2 | . 2 . Swarmer 3 | . 3 . Grunt 9 | . 7 2 Best Kill Streak 4 | 2 4 2 Combat Bots Only 4 | . 4 2 Max Kills in Single Turn 1 | 1 1 1 Gunslinging . | . . . Exploded . | . . . Melee . | . . . Uniques/NPCs Destroyed . | . . . Combat | -11 -10 -10 -------- Run | Yrd Mat Min Hostile Shots Fired 75 | . 54 21 Missed 21 | . 16 5 Damage Taken 772 | . 431 341 Core 259 | . 65 194 Absorbed by Shields . | . . . Core Remaining (%) 100 | 100 . . Volleys Fired 85 | 3 69 13 Largest 2 | 2 2 2 Hottest 130 | 70 85 130 Shots Fired 158 | 6 132 20 Gun 158 | 6 132 20 Cannon . | . . . Launcher . | . . . Special . | . . . Kinetic 73 | 3 69 1 Thermal 85 | 3 63 19 Explosive . | . . . Electromagnetic . | . . . Robot Hit Streak 11 | 3 11 5 Robot Miss Streak 4 | 1 4 1 Penetration Max . | . . . Secondary Targets . | . . . Shots Hit Robots 94 | 4 78 12 Core Hits 34 | 3 27 4 Critical Kills . | . . . Critical Parts Destroyed . | . . . Critical Strikes 4 | . 4 . Burn 4 | . 4 . Melee Attacks . | . . . Impact . | . . . Slashing . | . . . Piercing . | . . . Sneak Attacks . | . . . Combat Hostiles . | . . . Follow-up Attacks . | . . . Damage Inflicted 1319 | 54 1079 186 Guns 1319 | 54 1079 186 Cannons . | . . . Explosions . | . . . Melee . | . . . Ramming . | . . . Kinetic 601 | 41 549 11 Thermal 718 | 13 530 175 Explosive . | . . . Electromagnetic . | . . . Impact . | . . . Slashing . | . . . Piercing . | . . . Highest Corruption . | . . . Average Corruption . | . . . Corruption Purged . | . . . Corruption Blocked . | . . . Overload Shots . | . . . Overflow Damage . | . . . Projectiles . | . . . Explosions . | . . . Melee . | . . . Knockbacks . | . . . Impact . | . . . Kinetic . | . . . Secondary . | . . . Self-Inflicted Damage . | . . . Shots . | . . . Rammed . | . . . Targets Rammed . | . . . Kicked . | . . . Crushed . | . . . Highest Temperature 264 | 38 171 264 Average Temperature 67 | 16 59 118 Received Heat Transfer 285 | . 189 96 Siege Activations . | . . . Robots Corrupted . | . . . Combat Hostiles . | . . . Parts Fried . | . . . Impact Corruptions . | . . . Robots Melted . | . . . Combat Hostiles . | . . . Parts Melted 5 | . 4 1 Heat Transferred 2183 | 37 1739 407 Parts Sabotaged . | . . . Parts Stolen . | . . . Parts Stripped . | . . . Power Chain Reactions . | . . . Alert | -11 -10 -10 ------- Run | Yrd Mat Min Peak Influence 238 | 10 238 88 Initial 48 | . 6 48 Average 113 | 8 127 85 Maximum Alert Level 1 | . 1 . Low Security (%) 80 | 100 72 100 Level 1 19 | . 27 . Level 2 . | . . . Level 3 . | . . . Level 4 . | . . . Level 5 . | . . . High Security . | . . . Max Security . | . . . Squads Dispatched 3 | . 3 . Investigation . | . . . Extermination . | . . . Reinforcement 3 | . 3 . Assault . | . . . Garrison . | . . . Intercept . | . . . Searches Triggered . | . . . Construction Impeded . | . . . Haulers Reinforced . | . . . Active Scanning Responses . | . . . Cargo Convoy Interrupts . | . . . Stealth | -11 -10 -10 --------- Run | Yrd Mat Min Distress Signals 5 | . 5 . Communications Jammed . | . . . Distress Signals . | . . . Times Spotted 29 | . 25 4 Peak Tracking Total 6 | . 6 3 Tactical Retreats 3 | . 3 . Traps | -11 -10 -10 ------- Run | Yrd Mat Min Traps Triggered 1 | . 1 . Indirectly . | . . . Trap Hack Attempts . | . . . Triggered . | . . . Disarmed . | . . . Reprogrammed . | . . . Reused . | . . . Traps Extracted . | . . . Installed . | . . . Triggered . | . . . Machines | -11 -10 -10 ---------- Run | Yrd Mat Min Machines Disabled 1 | . 1 . Max in Single Turn 1 | . 1 . Machines Repaired . | . . . Machines Dismantled . | . . . Machines Sabotaged . | . . . Overloaded Fab Kills . | . . . Hacking | -11 -10 -10 --------- Run | Yrd Mat Min Machines Accessed 4 | . 4 . Terminals 4 | . 4 . Fabricators . | . . . Repair Stations . | . . . Recycling Units . | . . . Scanalyzers . | . . . Garrison Access . | . . . Total Hacks 12 | . 12 . Successful 4 | . 4 . Failed 8 | . 8 . Catastrophic . | . . . Database Lockouts . | . . . Manual 12 | . 12 . Terminals 12 | . 12 . Fabricators . | . . . Repair Stations . | . . . Recycling Units . | . . . Scanalyzers . | . . . Garrison Access . | . . . Terminal Hacks 2 | . 2 . Part Schematic 1 | . 1 . Robot Analysis 1 | . 1 . Fabricator Hacks . | . . . Repair Station Hacks . | . . . Recycling Unit Hacks . | . . . Scanalyzer . | . . . Garrison Access Hacks . | . . . Unauthorized Hacks 2 | . 2 . Terminals 2 | . 2 . Botnet 2 | . 2 . Fabricators . | . . . Repair Stations . | . . . Recycling Units . | . . . Scanalyzers . | . . . Garrison Access . | . . . Data Cores Recovered . | . . . Used . | . . . Hacking Detections 3 | . 3 . Full Trace Events . | . . . Feedback Events . | . . . Feedback Blocked . | . . . Robot Schematics Acquired . | . . . Robots Built . | . . . Authchips . | . . . Time . | . . . Total Robot Build Rating . | . . . Part Schematics Acquired 1 | . 1 . Parts Built . | . . . Authchips . | . . . Time . | . . . Total Part Build Rating . | . . . Parts Repaired . | . . . Time . | . . . Parts Recycled . | . . . Recycled Matter . | . . . Retrieved Matter . | . . . Retrieved Components . | . . . Parts Scanalyzed . | . . . Part Schematics Acquired . | . . . Parts Damaged . | . . . Bothacking | -11 -10 -10 ------------ Run | Yrd Mat Min Used RIF Installer . | . . . Robots Hacked . | . . . Non-combat . | . . . Combat . | . . . Robot Hacks Applied . | . . . Relay Couplers Released . | . . . Fabnet Peak Effective % . | . . . Robots Rewired . | . . . Allies Hacked . | . . . Hacks Repelled . | . . . Allies | -11 -10 -10 -------- Run | Yrd Mat Min Total Allies 1 | . . 1 Largest Group 1 | . . 1 Highest-Rated Group 31 | . . 31 Highest-Rated Ally 31 | . . 31 Total Orders . | . . . Ally Attacks 1 | . . 1 Total Damage 20 | . . 20 Kills . | . . . Allies Corrupted . | . . . Allies Melted . | . . . Intel | -11 -10 -10 ------- Run | Yrd Mat Min Robot Analysis Total 1 | . 1 . Derelict Logs Recovered . | . . . Drone Launches . | . . . Drone Recoveries . | . . . Exploration | -11 -10 -10 ------------- Run | Yrd Mat Min Turns Passed 1403 | 28 983 392 Spaces Moved 805 | 14 562 229 Core . | . . . Treads . | . . . Legs 35 | 14 21 . Wheels 770 | . 541 229 Hover . | . . . Flight . | . . . Fastest Speed 110 | 120 110 140 Average Speed 128 | 120 117 154 Slowest Speed 155 | 120 155 155 Overloaded Moves . | . . . Propulsion Burnouts . | . . . Robots Hopped . | . . . Cave-ins Triggered . | . . . Exploration Rate (%) 51 | 2 94 59 Regions Visited 2 Branch Regions 1 Pre-discovered Areas 1 | . . 1 Known Exits Taken . | . . . Unknown Exits Taken 2 | 1 1 . Scrap Searched 1 | . . 1 Spaces Dug . | . . . Terrain Destroyed . | . . . Melee . | . . . Projectile . | . . . AOE . | . . . Terrain Rammed . | . . . Walls Destroyed . | . . . Machines Disabled . | . . . Actions | -11 -10 -10 --------- Run | Yrd Mat Min Total 1015 | 18 750 247 Wait 95 | . 94 1 Move 803 | 13 561 229 Hop . | . . . Pick Up 15 | 1 13 1 Fast Attach 4 | 1 1 2 Attach 1 | . 1 . Detach 1 | . . 1 Swap 5 | . 5 . Drop 6 | . 6 . Fire 85 | 3 69 13 Melee . | . . . Ram . | . . . Kick . | . . . Crush . | . . . Escape Stasis . | . . . Rewire . | . . . Trap . | . . . Miscellaneous . | . . . Route ------- -11/Scrapyard -10/Materials (discovered 5 exits: [*Mat x3] / [*Min x2]) -10/Mines History --------- Turn | Location | Event 11 | -11/Scrapyard | Discovered new exit (range 3) 29 | -11/Scrapyard | Entered Materials 262 | -10/Materials | Discovered new exit (range 3) 310 | -10/Materials | Build established: Mutant 374 | -10/Materials | Discovered new exit (range 8) 505 | -10/Materials | Discovered new exit (range 14) 584 | -10/Materials | Discovered new exit (range 11) 863 | -10/Materials | Discovered new exit (range 15) 1012 | -10/Materials | Entered Mines 1025 | -10/Mines | Core integrity fell below 50% 1026 | -10/Mines | Escorted by a lone wolf Derelict 1046 | -10/Mines | Learned location of Storage (-8) 1215 | -10/Mines | Found a hidden stash of uninstalled traps 1400 | -10/Mines | Core integrity fell below 20% 1404 | -10/Mines | Destroyed by YI-UF0 with YI-UF0's Doublenader Last Messages --------------- 01199_ Found 21 Matter. 01202_ K-01 Serf collects debris. 01202_ Acquired Seismic Detector. 01205_ K-01 Serf collects debris. 01215_ A stash of uninstalled traps is collected here! 01387_ YI-UF0: "Whaaaaaaaa!" 01388_ YI-UF0: "BADABOOM!" 01388_ YI-UF0: "WHAAM!" 01390_ 2T-IZ2(g): "Mission, incomplete...*fzzt*" 01390_ 2T-IZ2(g) destroyed. 01392_ YI-UF0: "WHAAM!" 01392_ G-34 Mercenary destroyed. 01394_ Pressure Siphon disabled. 01394_ Lgt. Treads destroyed. 01394_ YI-UF0: "KAPOW!" 01394_ U-05 Engineer destroyed. 01397_ K-01 Serf destroyed. 01398_ YI-UF0 mumbles something. 01401_ Wheel destroyed. 01403_ The unstable cave ceiling collapses. Map ----- +----------------------------------------------------+ | ?# ##??????????????????????????? | | ?# ### ## ##?????????????????????????? | | ?######## #?# ### ##????????????????????????? | | ???????## ### ### #????????????????????????? | | ??????## ## /% #????????????????????????? | | ?????## !! ##????????????????????????? | | ?????# ### ##?????????????????????????? | | ?????#&& ##?# ##?????????????????????????? | | ?????## & #### #??# ####??????????????????????? | | ??????#####??# #??# ##?????????????????????? | | ?????????????# #??# ##????????????????????? | | ?????????????# #??# ## ##???????????????????? | | ############## #### ### ##??????????????????? | | ### #??????????????????? | | ## #??????????????????? | | ####################### ##??????????????????? | | #?????????????????????## #???????????????????? | | #?#####????????????????## ##??????????????????? | | ### #?????????????????# ##?????????????????? | | ## ##????????????????## #?????????????????? | | ##?#####??????????## #?????????????????? | | ## ###????####### ##????????????????? | | ##???# ### ####????????? | | ##### t #????????? | | # """" #???????? | | @ """ #???????? | | ## = " #???????? | | """" ## *g%= ??????????? | | """" ###### ?????????? | | # ## """" #????#### # ### %% ????????? | | ####### #???????####### #????*= ?????????? | | ??????## #?????????????? #?????##?????????? | | ??????## ##?????????????? #????????????????? | | ????### ###??????????????? #????????????????? | | ???## ##????????????????? #????????????????? | | ??## #?????????????????? ?????????????????? | | ?## #????????????????????????????????????? | | ?# ##???????????????????????????????????? | | ## ## #???????????#####??????####?????????? | | # #### #########???# ??????## ##????????? | | ##?# #???# #?????## = #????????? | | #?########## #???# #????## % #????????? | | #??????????# ##### #???## %%##????????? | | ### ##??????????# ##### ####?????????? | | ??## #???????????# ##????????????? | | ???## ##???????????### #######?????????????? | | ????###??????????????# ##???????????????????? | | ?????????????????????## ##????????????????????? | | ??????????????????????######?????????????????????? | | ?????????????????????????????????????????????????? | +----------------------------------------------------+ Best States ------------- Heat Dissipation 35 Energy Generation 10 Energy Capacity 250 Matter Stores 300 Matter Capacity 300 Sight Range 16 Terrain Scan Density 10 Evasion (%) 55 Recoil Reduction 1 Item Schematics ----------------- Huge Storage Unit | -10/Materials | Hacked Robot Schematics ------------------ None Fabricated ------------ Nothing Alien Tech Used ----------------- None Achievements -------------- None Challenges ------------ None Game ------ Seed BlastLaserMicroactuators Manual? 0 Play Time 00:10:01 Cumulative 158.3 hours Start 2024.06.26 @ 23:08:08 End 2024.06.26 @ 23:16:25 Sessions 1 Manual Loads 0 Difficulty Rogue Special Mode None Game No. 101 Rogue 101 Adventurer 0 Explorer 0 Win Type - Total 2 Types 1/0/0/1/0/0/0/0/0 Lore% 67 Gallery% 60 Achievement% 53 Wizard Run 0 Options --------- Layout 0 ASCII 0 Keyboard 0 Movement Mouse Keybinds 0 Fullscreen 1 Font 18/SmallcapsGlow Map View 76x50 Zoom Use 0% Tactical HUD 1 Map Filters NONE Filters NONE Steam X RUN: 5f873111-9dae-48b4-a017-ae57419be4cf